[Event "Late-Titled-Tuesday-Blitz-April-30-2024"]
[Site "Chess.com"]
[Date "2024.04.30"]
[Round "8"]
[White "nabukatnezarr"]
[Black "ameetghasi100"]
[Result "1-0"]
[WhiteElo "2599"]
[BlackElo "2788"]
[TimeControl "180+1"]
[EndTime "15:28:21 PDT"]
[Termination "nabukatnezarr won on time"]

1. d4 {[%clk 0:02:59.3]} 1... g6 {[%clk 0:03:00.9]} 2. e4 {[%clk 0:02:58.9]}
2... Bg7 {[%clk 0:03:01.3]} 3. Nf3 {[%clk 0:02:59.6]} 3... d6 {[%clk 0:03:01.1]}
4. Bc4 {[%clk 0:02:59.9]} 4... e6 {[%clk 0:02:57.9]} 5. Qe2 {[%clk 0:02:57.5]}
5... Ne7 {[%clk 0:02:58.3]} 6. Bb3 {[%clk 0:02:55.8]} 6... Nd7 {[%clk
0:02:57.8]} 7. h4 {[%clk 0:02:55.2]} 7... h6 {[%clk 0:02:58]} 8. c3 {[%clk
0:02:51.1]} 8... b6 {[%clk 0:02:58.4]} 9. Bf4 {[%clk 0:02:51.5]} 9... Bb7 {[%clk
0:02:58.3]} 10. Nbd2 {[%clk 0:02:52.3]} 10... a6 {[%clk 0:02:58.1]} 11. O-O-O
{[%clk 0:02:50.5]} 11... b5 {[%clk 0:02:56.9]} 12. Kb1 {[%clk 0:02:50.8]} 12...
Nb6 {[%clk 0:02:49.7]} 13. Rhe1 {[%clk 0:02:48.5]} 13... Qd7 {[%clk 0:02:48.6]}
14. Ka1 {[%clk 0:02:43.7]} 14... a5 {[%clk 0:02:48.2]} 15. Bc2 {[%clk
0:02:42.9]} 15... b4 {[%clk 0:02:47]} 16. c4 {[%clk 0:02:43.1]} 16... a4 {[%clk
0:02:44.6]} 17. e5 {[%clk 0:02:32]} 17... b3 {[%clk 0:02:42.2]} 18. Be4 {[%clk
0:02:31.4]} 18... d5 {[%clk 0:02:40.5]} 19. Bd3 {[%clk 0:02:23.9]} 19... dxc4
{[%clk 0:02:38.5]} 20. Nxc4 {[%clk 0:02:24.5]} 20... Ned5 {[%clk 0:02:30.1]} 21.
Nxb6 {[%clk 0:02:21.9]} 21... cxb6 {[%clk 0:02:26.8]} 22. Bd2 {[%clk 0:02:15.2]}
22... bxa2 {[%clk 0:02:11.3]} 23. Rc1 {[%clk 0:02:11.7]} 23... O-O {[%clk
0:02:05.8]} 24. h5 {[%clk 0:02:11.4]} 24... Ne7 {[%clk 0:01:55.8]} 25. hxg6
{[%clk 0:01:54.8]} 25... fxg6 {[%clk 0:01:54.7]} 26. Bb4 {[%clk 0:01:53.2]}
26... a3 {[%clk 0:01:40.7]} 27. b3 {[%clk 0:01:43.8]} 27... Bxf3 {[%clk
0:01:38.2]} 28. gxf3 {[%clk 0:01:36.1]} 28... Qxd4+ {[%clk 0:01:35.8]} 29. Bc3
{[%clk 0:01:36.5]} 29... Qf4 {[%clk 0:01:35.3]} 30. Kxa2 {[%clk 0:01:26.6]}
30... Qxf3 {[%clk 0:01:30.9]} 31. Bb4 {[%clk 0:01:18.3]} 31... Ra7 {[%clk
0:01:19.7]} 32. Bxe7 {[%clk 0:01:11.5]} 32... Rd7 {[%clk 0:01:15.8]} 33. Bxf8
{[%clk 0:00:59.6]} 33... Qxf8 {[%clk 0:00:44.1]} 34. Bxg6 {[%clk 0:00:57.6]}
34... Qf4 {[%clk 0:00:44.1]} 35. Rc8+ {[%clk 0:00:54]} 35... Bf8 {[%clk
0:00:43.3]} 36. Rc2 {[%clk 0:00:46.7]} 36... Qd4 {[%clk 0:00:35]} 37. Rg1 {[%clk
0:00:40.5]} 37... Kh8 {[%clk 0:00:35.2]} 38. Qf3 {[%clk 0:00:33.3]} 38... Bc5
{[%clk 0:00:29.7]} 39. Qf6+ {[%clk 0:00:26.7]} 39... Rg7 {[%clk 0:00:29.3]} 40.
Bf7 {[%clk 0:00:11.1]} 40... Bf8 {[%clk 0:00:25.3]} 41. Qxh6+ {[%clk 0:00:10.5]}
1-0

[Event "Late-Titled-Tuesday-Blitz-April-30-2024"]
[Site "Chess.com"]
[Date "2024.04.30"]
[Round "8"]
[White "imdvb6307"]
[Black "FredddieCroderg"]
[Result "0-1"]
[WhiteElo "2535"]
[BlackElo "2455"]
[TimeControl "180+1"]
[EndTime "15:28:25 PDT"]
[Termination "FredddieCroderg won on time"]

1. d4 {[%clk 0:03:00.9]} 1... g6 {[%clk 0:01:51.8]} 2. Nf3 {[%clk 0:02:59.5]}
2... Bg7 {[%clk 0:01:52.1]} 3. c4 {[%clk 0:02:58.4]} 3... Nf6 {[%clk 0:01:52.6]}
4. Nc3 {[%clk 0:02:58]} 4... O-O {[%clk 0:01:53.5]} 5. e4 {[%clk 0:02:58.1]}
5... c5 {[%clk 0:01:51.9]} 6. h3 {[%clk 0:02:56.4]} 6... cxd4 {[%clk 0:01:51.3]}
7. Nxd4 {[%clk 0:02:56.7]} 7... Nc6 {[%clk 0:01:51.4]} 8. Be3 {[%clk 0:02:57]}
8... d6 {[%clk 0:01:45.9]} 9. Be2 {[%clk 0:02:57.2]} 9... Bd7 {[%clk 0:01:45.7]}
10. O-O {[%clk 0:02:57.2]} 10... Rc8 {[%clk 0:01:45.6]} 11. Nf3 {[%clk
0:02:49.6]} 11... Na5 {[%clk 0:01:36]} 12. b3 {[%clk 0:02:27.9]} 12... a6 {[%clk
0:01:33.4]} 13. e5 {[%clk 0:01:53.9]} 13... dxe5 {[%clk 0:01:25.7]} 14. Nxe5
{[%clk 0:01:53.4]} 14... b5 {[%clk 0:01:21]} 15. c5 {[%clk 0:01:49.1]} 15... b4
{[%clk 0:01:15.4]} 16. Nd5 {[%clk 0:01:14.7]} 16... Nxd5 {[%clk 0:01:13.2]} 17.
Qxd5 {[%clk 0:01:12.2]} 17... Be6 {[%clk 0:01:06.5]} 18. Qe4 {[%clk 0:00:44.8]}
18... Bd5 {[%clk 0:00:58.5]} 19. Qf4 {[%clk 0:00:36.1]} 19... Qc7 {[%clk
0:00:48.3]} 20. Bd4 {[%clk 0:00:18.8]} 20... Nc6 {[%clk 0:00:47]} 21. Nxc6
{[%clk 0:00:14.9]} 21... Qxf4 {[%clk 0:00:42.3]} 22. Nxe7+ {[%clk 0:00:15.1]}
22... Kh8 {[%clk 0:00:42.1]} 23. Bxg7+ {[%clk 0:00:15.3]} 23... Kxg7 {[%clk
0:00:41.7]} 24. Nxd5 {[%clk 0:00:15.6]} 24... Qe5 {[%clk 0:00:36.3]} 25. Bc4
{[%clk 0:00:15.5]} 25... Rxc5 {[%clk 0:00:33.5]} 26. Rfe1 {[%clk 0:00:15.8]}
26... Qb2 {[%clk 0:00:30.5]} 27. Nxb4 {[%clk 0:00:15.1]} 27... Rxc4 {[%clk
0:00:22.6]} 28. Nd3 {[%clk 0:00:15]} 28... Qd2 {[%clk 0:00:21.2]} 29. bxc4
{[%clk 0:00:15]} 29... Qxd3 {[%clk 0:00:21.1]} 30. c5 {[%clk 0:00:14.1]} 30...
Rc8 {[%clk 0:00:19.6]} 31. Rac1 {[%clk 0:00:14]} 31... Qd5 {[%clk 0:00:19.4]}
32. Re3 {[%clk 0:00:07.7]} 32... Rxc5 {[%clk 0:00:18.3]} 33. Rxc5 {[%clk
0:00:07.7]} 33... Qxc5 {[%clk 0:00:18.2]} 34. a3 {[%clk 0:00:08.3]} 34... a5
{[%clk 0:00:17.9]} 35. g3 {[%clk 0:00:08.5]} 35... a4 {[%clk 0:00:18.2]} 36. h4
{[%clk 0:00:08.8]} 36... h5 {[%clk 0:00:16.6]} 37. Kg2 {[%clk 0:00:09.2]} 37...
Kf6 {[%clk 0:00:16.2]} 38. Kf3 {[%clk 0:00:09.5]} 38... Qd5+ {[%clk 0:00:16.4]}
39. Ke2 {[%clk 0:00:09.4]} 39... Kf5 {[%clk 0:00:14.8]} 40. Rf3+ {[%clk
0:00:08.4]} 40... Kg4 {[%clk 0:00:14.5]} 41. Re3 {[%clk 0:00:07.2]} 41... Kh3
{[%clk 0:00:14.2]} 42. Rf3 {[%clk 0:00:04.8]} 42... Kg2 {[%clk 0:00:13.8]} 43.
Rf4 {[%clk 0:00:05.1]} 43... Qb3 {[%clk 0:00:12.6]} 44. Ke1 {[%clk 0:00:02.6]}
44... Qxa3 {[%clk 0:00:11.8]} 45. Ke2 {[%clk 0:00:01.1]} 45... Qb3 {[%clk
0:00:11.2]} 0-1

[Event "Late-Titled-Tuesday-Blitz-April-30-2024"]
[Site "Chess.com"]
[Date "2024.04.30"]
[Round "8"]
[White "Rodalquilar"]
[Black "Langua_Chess"]
[Result "1-0"]
[WhiteElo "2675"]
[BlackElo "2432"]
[TimeControl "180+1"]
[EndTime "15:28:25 PDT"]
[Termination "Rodalquilar won on time"]

1. d4 {[%clk 0:03:00.9]} 1... Nf6 {[%clk 0:02:40.1]} 2. Nf3 {[%clk 0:03:01.2]}
2... e6 {[%clk 0:02:36.7]} 3. Bf4 {[%clk 0:03:01.4]} 3... c5 {[%clk 0:02:33.8]}
4. e3 {[%clk 0:03:01.4]} 4... Nd5 {[%clk 0:02:31]} 5. Bg3 {[%clk 0:03:00.7]}
5... Qb6 {[%clk 0:02:31.4]} 6. Nc3 {[%clk 0:02:35.4]} 6... Qxb2 {[%clk
0:02:19.6]} 7. Nxd5 {[%clk 0:02:34]} 7... exd5 {[%clk 0:02:20.5]} 8. Rb1 {[%clk
0:02:19.5]} 8... Qc3+ {[%clk 0:02:20]} 9. Qd2 {[%clk 0:02:18.1]} 9... Qxd2+
{[%clk 0:02:15.8]} 10. Kxd2 {[%clk 0:02:18.6]} 10... Nc6 {[%clk 0:02:14.2]} 11.
h4 {[%clk 0:01:46.5]} 11... Be7 {[%clk 0:02:02.8]} 12. h5 {[%clk 0:01:46.4]}
12... h6 {[%clk 0:02:02]} 13. c3 {[%clk 0:01:33.6]} 13... O-O {[%clk 0:02:01.1]}
14. Bd3 {[%clk 0:01:34]} 14... b6 {[%clk 0:01:53.9]} 15. Nh4 {[%clk 0:01:32.6]}
15... cxd4 {[%clk 0:01:24.5]} 16. cxd4 {[%clk 0:01:23.4]} 16... Bb4+ {[%clk
0:01:18.3]} 17. Ke2 {[%clk 0:01:22.9]} 17... Re8 {[%clk 0:01:18.7]} 18. Nf5
{[%clk 0:01:16.6]} 18... Bf8 {[%clk 0:01:11.7]} 19. Kf3 {[%clk 0:00:50.6]} 19...
Nb4 {[%clk 0:01:05.2]} 20. Bb5 {[%clk 0:00:47.2]} 20... Nxa2 {[%clk 0:01:04.1]}
21. Rb3 {[%clk 0:00:37.6]} 21... a6 {[%clk 0:00:56.9]} 22. Be2 {[%clk
0:00:33.9]} 22... Nb4 {[%clk 0:00:54.6]} 23. Nd6 {[%clk 0:00:15.7]} 23... Bxd6
{[%clk 0:00:52.1]} 24. Bxd6 {[%clk 0:00:16.6]} 24... Nc6 {[%clk 0:00:21.6]} 25.
Rxb6 {[%clk 0:00:16.6]} 25... Re6 {[%clk 0:00:22.3]} 26. Bc5 {[%clk 0:00:10.8]}
26... a5 {[%clk 0:00:22.6]} 27. Kg3 {[%clk 0:00:09.3]} 27... a4 {[%clk
0:00:22.1]} 28. Ra1 {[%clk 0:00:09.5]} 28... Ne7 {[%clk 0:00:03.5]} 29. Rb4
{[%clk 0:00:06.2]} 29... Nf5+ {[%clk 0:00:03.6]} 30. Kh2 {[%clk 0:00:06.7]}
30... d6 {[%clk 0:00:03.6]} 31. Bb6 {[%clk 0:00:06.6]} 31... Nh4 {[%clk
0:00:01.9]} 32. g3 {[%clk 0:00:04.7]} 32... Nf5 {[%clk 0:00:02.2]} 33. Bf3
{[%clk 0:00:05]} 33... Re8 {[%clk 0:00:02.3]} 34. Bxd5 {[%clk 0:00:05.2]} 34...
Rb8 {[%clk 0:00:03]} 35. Raxa4 {[%clk 0:00:04.1]} 35... Bd7 {[%clk 0:00:02.2]}
36. Ra3 {[%clk 0:00:02.7]} 36... Be6 {[%clk 0:00:01.9]} 37. Bxe6 {[%clk
0:00:02.8]} 37... fxe6 {[%clk 0:00:02.8]} 38. Rab3 {[%clk 0:00:03.5]} 38... d5
{[%clk 0:00:02.6]} 39. Bc5 {[%clk 0:00:03.7]} 39... Rxb4 {[%clk 0:00:02.6]} 40.
Rxb4 {[%clk 0:00:04.3]} 40... Kh7 {[%clk 0:00:02.1]} 41. Rb7 {[%clk 0:00:04.5]}
41... Kg8 {[%clk 0:00:02.8]} 42. g4 {[%clk 0:00:04.8]} 42... Nh4 {[%clk
0:00:01.9]} 43. Kg3 {[%clk 0:00:05.4]} 1-0

[Event "Late-Titled-Tuesday-Blitz-April-30-2024"]
[Site "Chess.com"]
[Date "2024.04.30"]
[Round "8"]
[White "sergiochess83"]
[Black "SpeedofLight0"]
[Result "0-1"]
[WhiteElo "2911"]
[BlackElo "3035"]
[TimeControl "180+1"]
[EndTime "15:28:28 PDT"]
[Termination "SpeedofLight0 won on time"]

1. d4 {[%clk 0:02:56.6]} 1... d6 {[%clk 0:02:59.7]} 2. e4 {[%clk 0:02:53.9]}
2... g6 {[%clk 0:02:58.5]} 3. Nf3 {[%clk 0:02:51.7]} 3... Bg7 {[%clk 0:02:58.4]}
4. Bc4 {[%clk 0:02:51.8]} 4... a6 {[%clk 0:02:56.9]} 5. O-O {[%clk 0:02:49.6]}
5... b5 {[%clk 0:02:56.6]} 6. Bb3 {[%clk 0:02:49.2]} 6... Bb7 {[%clk 0:02:57]}
7. Re1 {[%clk 0:02:48.8]} 7... Nd7 {[%clk 0:02:57.1]} 8. c3 {[%clk 0:02:28.3]}
8... e6 {[%clk 0:02:56.3]} 9. Nbd2 {[%clk 0:02:27.9]} 9... Ne7 {[%clk
0:02:56.4]} 10. Nf1 {[%clk 0:02:28.1]} 10... O-O {[%clk 0:02:56.5]} 11. Ng3
{[%clk 0:02:28.6]} 11... c5 {[%clk 0:02:57.1]} 12. Bf4 {[%clk 0:02:27.9]} 12...
e5 {[%clk 0:02:54.9]} 13. dxe5 {[%clk 0:02:25.9]} 13... dxe5 {[%clk 0:02:55.8]}
14. Be3 {[%clk 0:02:17.6]} 14... c4 {[%clk 0:02:51.2]} 15. Bc2 {[%clk
0:02:17.3]} 15... Qc7 {[%clk 0:02:51.9]} 16. Qe2 {[%clk 0:02:13]} 16... Nc5
{[%clk 0:02:42.6]} 17. h4 {[%clk 0:02:13.1]} 17... h6 {[%clk 0:02:33.7]} 18. h5
{[%clk 0:02:11.7]} 18... g5 {[%clk 0:02:31.6]} 19. Nh2 {[%clk 0:02:11.6]} 19...
Rad8 {[%clk 0:02:19.1]} 20. Bxc5 {[%clk 0:02:04.3]} 20... Qxc5 {[%clk 0:02:20]}
21. Ng4 {[%clk 0:02:04.4]} 21... Rd6 {[%clk 0:01:59.2]} 22. Rad1 {[%clk
0:02:00.6]} 22... Rfd8 {[%clk 0:01:59.2]} 23. Rxd6 {[%clk 0:02:00.4]} 23... Rxd6
{[%clk 0:02:00.1]} 24. Rd1 {[%clk 0:01:59.3]} 24... Bc8 {[%clk 0:01:52.4]} 25.
Ne3 {[%clk 0:01:55]} 25... Be6 {[%clk 0:01:50.7]} 26. Nef5 {[%clk 0:01:46.8]}
26... Rxd1+ {[%clk 0:01:35.3]} 27. Qxd1 {[%clk 0:01:45.3]} 27... Bxf5 {[%clk
0:01:27.7]} 28. exf5 {[%clk 0:01:41.5]} 28... Qd5 {[%clk 0:01:23.8]} 29. Qe2
{[%clk 0:01:33.4]} 29... f6 {[%clk 0:01:18.9]} 30. b3 {[%clk 0:01:29]} 30... Bf8
{[%clk 0:01:15.6]} 31. bxc4 {[%clk 0:01:28.8]} 31... bxc4 {[%clk 0:01:14.9]} 32.
Ne4 {[%clk 0:01:27.7]} 32... Kg7 {[%clk 0:01:09.6]} 33. Nd2 {[%clk 0:01:21.8]}
33... Qb5 {[%clk 0:01:09.5]} 34. Nxc4 {[%clk 0:01:09.9]} 34... Nd5 {[%clk
0:01:08.8]} 35. Bb3 {[%clk 0:01:07.9]} 35... Nf4 {[%clk 0:00:58.7]} 36. Qe4
{[%clk 0:01:02.9]} 36... Qd5 {[%clk 0:00:55.9]} 37. Qxd5 {[%clk 0:00:48.5]}
37... Nxd5 {[%clk 0:00:56.8]} 38. Nxe5 {[%clk 0:00:48.4]} 38... Nxc3 {[%clk
0:00:51.9]} 39. Nc6 {[%clk 0:00:41.7]} 39... Bc5 {[%clk 0:00:50.6]} 40. Nd8
{[%clk 0:00:31.3]} 40... Bb6 {[%clk 0:00:42]} 41. Ne6+ {[%clk 0:00:30.4]} 41...
Kh8 {[%clk 0:00:40.4]} 42. g4 {[%clk 0:00:26.2]} 42... Ne4 {[%clk 0:00:39.4]}
43. Kg2 {[%clk 0:00:26.6]} 43... Nxf2 {[%clk 0:00:35.7]} 44. Kf3 {[%clk
0:00:26.6]} 44... Nd3 {[%clk 0:00:36.4]} 45. Ke4 {[%clk 0:00:22.2]} 45... Ne5
{[%clk 0:00:36.8]} 46. Kd5 {[%clk 0:00:13.4]} 46... Nxg4 {[%clk 0:00:35.7]} 47.
Kc6 {[%clk 0:00:13.6]} 47... Be3 {[%clk 0:00:33.3]} 48. Nc7 {[%clk 0:00:12.4]}
48... a5 {[%clk 0:00:33.1]} 49. Kb5 {[%clk 0:00:10.5]} 49... Bd2 {[%clk
0:00:30.2]} 50. Nd5 {[%clk 0:00:08.9]} 50... Kg7 {[%clk 0:00:30.4]} 51. Ne7
{[%clk 0:00:02.8]} 51... Ne3 {[%clk 0:00:22.5]} 52. Nc6 {[%clk 0:00:03.5]} 52...
g4 {[%clk 0:00:22.6]} 53. Bd1 {[%clk 0:00:01.4]} 53... Nxd1 {[%clk 0:00:22.4]}
0-1

[Event "Late-Titled-Tuesday-Blitz-April-30-2024"]
[Site "Chess.com"]
[Date "2024.04.30"]
[Round "8"]
[White "PenguinPacks"]
[Black "BardArtem"]
[Result "1-0"]
[WhiteElo "2496"]
[BlackElo "2787"]
[TimeControl "180+1"]
[EndTime "15:28:28 PDT"]
[Termination "PenguinPacks won by checkmate"]

1. e4 {[%clk 0:03:00.9]} 1... c5 {[%clk 0:02:54.6]} 2. Nf3 {[%clk 0:03:01.1]}
2... d6 {[%clk 0:02:49.5]} 3. d4 {[%clk 0:03:01.2]} 3... cxd4 {[%clk 0:02:48.5]}
4. Nxd4 {[%clk 0:03:02.1]} 4... Nf6 {[%clk 0:02:47.4]} 5. Nc3 {[%clk 0:03:02.5]}
5... g6 {[%clk 0:02:47.4]} 6. Be3 {[%clk 0:03:01.8]} 6... Nc6 {[%clk 0:02:47.2]}
7. f3 {[%clk 0:03:00.7]} 7... h5 {[%clk 0:02:47.5]} 8. Bc4 {[%clk 0:03:00.7]}
8... Bg7 {[%clk 0:02:47]} 9. Qd2 {[%clk 0:03:00.9]} 9... O-O {[%clk 0:02:46.3]}
10. O-O-O {[%clk 0:03:00.7]} 10... Na5 {[%clk 0:02:47]} 11. Bb3 {[%clk
0:02:49.1]} 11... Rb8 {[%clk 0:02:44]} 12. Kb1 {[%clk 0:02:40.3]} 12... Bd7
{[%clk 0:02:39.3]} 13. Bh6 {[%clk 0:02:28.9]} 13... b5 {[%clk 0:02:27.9]} 14.
Bxg7 {[%clk 0:02:25.1]} 14... Kxg7 {[%clk 0:02:28.8]} 15. h4 {[%clk 0:02:10.9]}
15... b4 {[%clk 0:02:06.9]} 16. Nd5 {[%clk 0:02:05.5]} 16... Nxd5 {[%clk
0:02:05.9]} 17. exd5 {[%clk 0:02:04.4]} 17... Rh8 {[%clk 0:01:56]} 18. g4 {[%clk
0:01:51.3]} 18... Nb7 {[%clk 0:01:46]} 19. Rde1 {[%clk 0:01:33]} 19... Nc5
{[%clk 0:01:43.2]} 20. Qg5 {[%clk 0:01:26.6]} 20... f6 {[%clk 0:01:15]} 21. Qe3
{[%clk 0:01:26.4]} 21... Kf7 {[%clk 0:01:07.7]} 22. gxh5 {[%clk 0:01:21.9]}
22... Rxh5 {[%clk 0:01:07.4]} 23. Rhg1 {[%clk 0:01:22.3]} 23... Re5 {[%clk
0:01:00.4]} 24. Qh6 {[%clk 0:01:19.6]} 24... Rxe1+ {[%clk 0:00:57.2]} 25. Rxe1
{[%clk 0:01:18.2]} 25... Qh8 {[%clk 0:00:57.8]} 26. Qe3 {[%clk 0:01:14.2]} 26...
Re8 {[%clk 0:00:57.9]} 27. Qf4 {[%clk 0:00:35.8]} 27... Qh5 {[%clk 0:00:37.9]}
28. Ne6 {[%clk 0:00:29.3]} 28... Bxe6 {[%clk 0:00:36.5]} 29. dxe6+ {[%clk
0:00:30.2]} 29... Kg7 {[%clk 0:00:37.2]} 30. Qxb4 {[%clk 0:00:30.3]} 30... Qxf3
{[%clk 0:00:28.6]} 31. Qb5 {[%clk 0:00:25.8]} 31... Rh8 {[%clk 0:00:24.6]} 32.
Qa5 {[%clk 0:00:21.6]} 32... Qb7 {[%clk 0:00:17.9]} 33. Rg1 {[%clk 0:00:19.3]}
33... Rxh4 {[%clk 0:00:16.7]} 34. Qe1 {[%clk 0:00:19.9]} 34... Qe4 {[%clk
0:00:14.7]} 35. Qg3 {[%clk 0:00:19]} 35... Rh5 {[%clk 0:00:12.6]} 36. Qf2 {[%clk
0:00:18]} 36... Nxe6 {[%clk 0:00:09.5]} 37. Re1 {[%clk 0:00:16.8]} 37... Qf4
{[%clk 0:00:06.6]} 38. Qxa7 {[%clk 0:00:13.3]} 38... Nc5 {[%clk 0:00:06.5]} 39.
Qxe7+ {[%clk 0:00:07.4]} 39... Kh6 {[%clk 0:00:06.8]} 40. Qf8+ {[%clk
0:00:07.8]} 40... Kg5 {[%clk 0:00:07.3]} 41. Rg1+ {[%clk 0:00:08.3]} 41... Kh4
{[%clk 0:00:07.6]} 42. Qa8 {[%clk 0:00:05.1]} 42... Ne4 {[%clk 0:00:05.9]} 43.
Qc8 {[%clk 0:00:03]} 43... Qe3 {[%clk 0:00:04.5]} 44. Qg4# {[%clk 0:00:00.4]}
1-0

[Event "Late-Titled-Tuesday-Blitz-April-30-2024"]
[Site "Chess.com"]
[Date "2024.04.30"]
[Round "8"]
[White "cristianserban1"]
[Black "Abund"]
[Result "0-1"]
[WhiteElo "2489"]
[BlackElo "2762"]
[TimeControl "180+1"]
[EndTime "15:28:28 PDT"]
[Termination "Abund won on time"]

1. d4 {[%clk 0:03:00.9]} 1... d5 {[%clk 0:03:00.1]} 2. c4 {[%clk 0:03:01.1]}
2... e6 {[%clk 0:03:00.5]} 3. Nf3 {[%clk 0:03:01.3]} 3... Nf6 {[%clk 0:03:01]}
4. g3 {[%clk 0:03:01.4]} 4... dxc4 {[%clk 0:02:58.2]} 5. Bg2 {[%clk 0:03:00.4]}
5... Bb4+ {[%clk 0:02:58.3]} 6. Bd2 {[%clk 0:03:00.1]} 6... a5 {[%clk
0:02:57.6]} 7. Qc2 {[%clk 0:02:53.3]} 7... b5 {[%clk 0:02:49]} 8. a4 {[%clk
0:02:41.5]} 8... c6 {[%clk 0:02:34.5]} 9. axb5 {[%clk 0:02:40.6]} 9... Bxd2+
{[%clk 0:02:34.3]} 10. Qxd2 {[%clk 0:02:41.5]} 10... cxb5 {[%clk 0:02:33.1]} 11.
Qg5 {[%clk 0:02:42]} 11... O-O {[%clk 0:01:56.7]} 12. Qxb5 {[%clk 0:02:41]}
12... Qd5 {[%clk 0:01:16.5]} 13. Nc3 {[%clk 0:02:23.6]} 13... Qxb5 {[%clk
0:01:15.6]} 14. Nxb5 {[%clk 0:02:24.5]} 14... Bd7 {[%clk 0:01:14.1]} 15. Ne5
{[%clk 0:02:06.5]} 15... Ra6 {[%clk 0:01:07.1]} 16. Nc3 {[%clk 0:02:04.6]} 16...
Nc6 {[%clk 0:00:54.8]} 17. Nxd7 {[%clk 0:01:20.5]} 17... Nxd7 {[%clk 0:00:54.6]}
18. Bxc6 {[%clk 0:01:21.1]} 18... Rxc6 {[%clk 0:00:54.8]} 19. Rxa5 {[%clk
0:01:22]} 19... Rb8 {[%clk 0:00:53.4]} 20. Ra2 {[%clk 0:01:03.7]} 20... Rcb6
{[%clk 0:00:44.5]} 21. Na4 {[%clk 0:01:03.5]} 21... Rb4 {[%clk 0:00:33]} 22. Kd2
{[%clk 0:00:59.5]} 22... g6 {[%clk 0:00:22.6]} 23. Kc2 {[%clk 0:00:47.9]} 23...
Nf6 {[%clk 0:00:17.9]} 24. Nc3 {[%clk 0:00:41.7]} 24... Ng4 {[%clk 0:00:12.7]}
25. Nd1 {[%clk 0:00:30.5]} 25... f5 {[%clk 0:00:09.9]} 26. h3 {[%clk 0:00:27.1]}
26... Nf6 {[%clk 0:00:10]} 27. Nc3 {[%clk 0:00:27.7]} 27... Nd5 {[%clk
0:00:05.7]} 28. e3 {[%clk 0:00:17.9]} 28... R8b7 {[%clk 0:00:04.2]} 29. Rha1
{[%clk 0:00:16.2]} 29... Kf7 {[%clk 0:00:03.6]} 30. Nd1 {[%clk 0:00:15.2]} 30...
Kf6 {[%clk 0:00:03.8]} 31. Ra7 {[%clk 0:00:15.4]} 31... h5 {[%clk 0:00:03.4]}
32. Rxb7 {[%clk 0:00:15.3]} 32... Rxb7 {[%clk 0:00:03.5]} 33. Nc3 {[%clk
0:00:11.7]} 33... Nb4+ {[%clk 0:00:03.5]} 34. Kd2 {[%clk 0:00:11.8]} 34... Nd3
{[%clk 0:00:04.1]} 35. Nd1 {[%clk 0:00:11.9]} 35... g5 {[%clk 0:00:02.6]} 36.
Kc3 {[%clk 0:00:11.9]} 36... Nb4 {[%clk 0:00:01.6]} 37. Kxc4 {[%clk 0:00:11.5]}
37... Nd5 {[%clk 0:00:02.3]} 38. Kd3 {[%clk 0:00:08.4]} 38... h4 {[%clk
0:00:02.8]} 39. gxh4 {[%clk 0:00:08.4]} 39... gxh4 {[%clk 0:00:03.7]} 40. Ra6
{[%clk 0:00:07.4]} 40... Nb4+ {[%clk 0:00:03.8]} 0-1

[Event "Late-Titled-Tuesday-Blitz-April-30-2024"]
[Site "Chess.com"]
[Date "2024.04.30"]
[Round "8"]
[White "AldokhinIvan"]
[Black "NajdorfPlayerc5"]
[Result "0-1"]
[WhiteElo "2640"]
[BlackElo "2500"]
[TimeControl "180+1"]
[EndTime "15:28:31 PDT"]
[Termination "NajdorfPlayerc5 won by checkmate"]

1. e4 {[%clk 0:03:00.9]} 1... c5 {[%clk 0:02:59.8]} 2. Nf3 {[%clk 0:03:01.3]}
2... d6 {[%clk 0:02:59.4]} 3. d4 {[%clk 0:03:02]} 3... cxd4 {[%clk 0:02:59.7]}
4. Nxd4 {[%clk 0:03:02.9]} 4... Nf6 {[%clk 0:03:00.1]} 5. Nc3 {[%clk 0:03:03.6]}
5... e5 {[%clk 0:02:58.1]} 6. Nb3 {[%clk 0:03:01.6]} 6... Be7 {[%clk 0:02:53.1]}
7. h3 {[%clk 0:03:00.2]} 7... Be6 {[%clk 0:02:44.3]} 8. g4 {[%clk 0:02:38.3]}
8... h6 {[%clk 0:02:43.7]} 9. Bg2 {[%clk 0:02:37.7]} 9... Nbd7 {[%clk
0:02:41.7]} 10. O-O {[%clk 0:02:35.3]} 10... a6 {[%clk 0:02:38.4]} 11. a4 {[%clk
0:02:35.2]} 11... Qc7 {[%clk 0:02:34.9]} 12. Be3 {[%clk 0:02:24.6]} 12... Rd8
{[%clk 0:02:15.1]} 13. Rc1 {[%clk 0:02:13.8]} 13... Nc5 {[%clk 0:02:13.9]} 14.
Nxc5 {[%clk 0:01:57.3]} 14... dxc5 {[%clk 0:02:14.8]} 15. Qe2 {[%clk 0:01:46]}
15... O-O {[%clk 0:02:08.2]} 16. Rcd1 {[%clk 0:01:40.8]} 16... Rxd1 {[%clk
0:02:02.1]} 17. Rxd1 {[%clk 0:01:40.2]} 17... Rd8 {[%clk 0:02:01.7]} 18. Nd5
{[%clk 0:01:40.3]} 18... Bxd5 {[%clk 0:01:57.3]} 19. exd5 {[%clk 0:01:41.2]}
19... Ne8 {[%clk 0:01:54.4]} 20. Bc1 {[%clk 0:01:21.8]} 20... Bf6 {[%clk
0:01:41.8]} 21. Be4 {[%clk 0:01:13.8]} 21... Nd6 {[%clk 0:01:39.5]} 22. Kg2
{[%clk 0:01:13.9]} 22... b5 {[%clk 0:01:35.6]} 23. axb5 {[%clk 0:01:09.8]} 23...
axb5 {[%clk 0:01:36.5]} 24. Rh1 {[%clk 0:00:58.8]} 24... Qb7 {[%clk 0:01:20.2]}
25. f3 {[%clk 0:00:56.9]} 25... Bh4 {[%clk 0:01:13]} 26. Be3 {[%clk 0:00:50.8]}
26... c4 {[%clk 0:00:57.2]} 27. Qd2 {[%clk 0:00:50.9]} 27... Ra8 {[%clk
0:00:38.6]} 28. Qb4 {[%clk 0:00:46.1]} 28... Be7 {[%clk 0:00:28.7]} 29. Qd2
{[%clk 0:00:39.6]} 29... b4 {[%clk 0:00:24.8]} 30. h4 {[%clk 0:00:37.3]} 30...
Ra2 {[%clk 0:00:20.5]} 31. Qc1 {[%clk 0:00:22.2]} 31... c3 {[%clk 0:00:17.4]}
32. b3 {[%clk 0:00:20.4]} 32... Qa6 {[%clk 0:00:13.1]} 33. Kf2 {[%clk
0:00:12.1]} 33... Nb5 {[%clk 0:00:10.6]} 34. g5 {[%clk 0:00:09.8]} 34... h5
{[%clk 0:00:10]} 35. g6 {[%clk 0:00:10.1]} 35... Nd6 {[%clk 0:00:08.6]} 36.
gxf7+ {[%clk 0:00:09.8]} 36... Kxf7 {[%clk 0:00:06.9]} 37. Rg1 {[%clk
0:00:09.2]} 37... Bxh4+ {[%clk 0:00:04.9]} 38. Kg2 {[%clk 0:00:03.4]} 38... Nxe4
{[%clk 0:00:05.1]} 39. Kh3 {[%clk 0:00:04.1]} 39... Bf2 {[%clk 0:00:04.3]} 40.
fxe4 {[%clk 0:00:02.2]} 40... Qc8+ {[%clk 0:00:04.6]} 41. Kg2 {[%clk 0:00:01.8]}
41... Bh4 {[%clk 0:00:01.7]} 42. Kh1 {[%clk 0:00:01.6]} 42... Qh3# {[%clk
0:00:01.3]} 0-1